[Event "Marienbad Open IM2 2020"]
[Site "Marianske Lazne"]
[Date "2020.01.22"]
[Round "6.15"]
[White "Strebkovs, Andrejs"]
[Black "Hilwerda, Jonas"]
[Result "1-0"]
[ECO "E81"]
[WhiteElo "2278"]
[BlackElo "2230"]
[Annotator "NA"]
[PlyCount "81"]
[EventDate "2020.01.18"]
[EventType "tourn"]
[EventCountry "CZE"]
[SourceTitle "playchess.com"]
[Source "ChessBase"]
[SourceQuality "1"]
[TimeControl "40/5400+30:1800+30"]

1. d4 {[%emt 0:00:00]} Nf6 {[%emt 0:00:00]} 2. c4 {[%emt 0:00:00]} g6 {[%emt 0:00:00]} 3. f3 {[%emt 0:00:50]} Bg7 {[%emt 0:00:00]} 4. e4 {[%emt 0:00:08]} d6 {[%emt 0:00:00]} 5. Nc3 {[%emt 0:00:14]} O-O {[%emt 0:00:07]} 6. Be3 {[%emt 0:00:04]} c5 {[%emt 0:00:12]} 7. dxc5 {[%emt 0:03:11]} dxc5 {[%emt 0:00:04]} 8. Qxd8 {[%emt 0:00:08]} Rxd8 {[%emt 0:00:02]} 9. Bxc5 {[%emt 0:00:17]} Nc6 {[%emt 0:00:06]} 10. Be3 {[%emt 0:04:34]} Be6 {[%emt 0:07:02]} 11. Rd1 {[%emt 0:08:17]} Nd7 {[%emt 0:07:46]} 12. Nd5 {[%emt 0:07:25]} Bxb2 {[%emt 0:16:33]} 13. Rb1 {[%emt 0:04:52]} Bxd5 {[%emt 0:11:34]} 14. cxd5 {[%emt 0:01:47]} Bc3+ {[%emt 0:00:07]} 15. Kf2 {[%emt 0:01:55]} Na5 {[%emt 0:00:42]} 16. Nh3 {[%emt 0:02:51]} a6 {[%emt 0:13:52]} 17. Nf4 {[%emt 0:06:12]} b5 {[%emt 0:03:06]} 18. Be2 {[%emt 0:01:53]} Rdc8 {[%emt 0:06:29]} 19. Rhc1 {[%emt 0:02:28]} Rc7 {[%emt 0:08:44]} 20. d6 {[%emt 0:01:08]} exd6 {[%emt 0:01:53]} 21. Nd5 {[%emt 0:00:08]} Rac8 {[%emt 0:00:04]} 22. Nxc7 {[%emt 0:06:33]} Rxc7 {[%emt 0:00:02]} 23. Bd2 {[%emt 0:01:14]} Bd4+ {[%emt 0:00:34]} 24. Ke1 {[%emt 0:02:00]} Nc4 {[%emt 0:02:07]} 25. Bxc4 {[%emt 0:04:57]} bxc4 {[%emt 0:00:02]} 26. Rb4 {[%emt 0:03:30]} Nb6 {[%emt 0:05:51]} 27. Bc3 {[%emt 0:02:06]} Bxc3+ {[%emt 0:02:02]} 28. Rxc3 {[%emt 0:00:04]} Rc6 {[%emt 0:00:05]} 29. Kd2 {[%emt 0:03:11]} g5 {[%emt 0:06:04]} 30. Ra3 {[%emt 0:02:36]} Nd7 {[%emt 0:00:59]} 31. Rba4 {[%emt 0:01:02]} Nc5 {[%emt 0:00:43]} 32. Rxc4 {[%emt 0:00:48]} Kg7 {[%emt 0:00:07]} 33. Rd3 {[%emt 0:05:32]} Kf6 {[%emt 0:01:00]} 34. Rd5 {[%emt 0:01:00]} Ke6 {[%emt 0:01:28]} 35. Rxg5 {[%emt 0:00:45]} f5 {[%emt 0:00:46]} 36. Ke3 {[%emt 0:03:20]} fxe4 {[%emt 0:00:05]} 37. fxe4 {[%emt 0:00:19]} Rb6 {[%emt 0:00:16]} 38. Rh5 {[%emt 0:01:24]} Rb2 {[%emt 0:00:26]} 39. Rh6+ {[%emt 0:01:11]} Ke5 {[%emt 0:00:13]} 40. Rd4 {[%emt 0:00:40]} Re2+ {[%emt 0:00:59]} 41. Kxe2 {[%emt 0:30:16] Kd5} 1-0

[Event "Marienbad Open IM2 2020"]
[Site "Marianske Lazne"]
[Date "2020.01.24"]
[Round "8.12"]
[White "Sharma Isha"]
[Black "Jurek, Josef"]
[Result "1-0"]
[ECO "B40"]
[WhiteElo "2169"]
[BlackElo "2235"]
[Annotator "NA"]
[PlyCount "63"]
[EventDate "2020.01.18"]
[EventType "tourn"]
[EventCountry "CZE"]
[SourceTitle "playchess.com"]
[Source "ChessBase"]
[SourceQuality "1"]
[TimeControl "40/5400+30:1800+30"]

1. e4 {[%emt 0:00:00]} c5 {[%emt 0:00:00]} 2. Nf3 {[%emt 0:00:08]} e6 {[%emt 0:00:16]} 3. g3 {[%emt 0:00:09]} Nc6 {[%emt 0:00:38]} 4. Bg2 {[%emt 0:00:17]} Nf6 {[%emt 0:00:41]} 5. Qe2 {[%emt 0:00:06]} d5 {[%emt 0:01:23]} 6. exd5 {[%emt 0:00:13]} Nxd5 {[%emt 0:00:16]} 7. O-O {[%emt 0:00:08]} Be7 {[%emt 0:01:00]} 8. Rd1 {[%emt 0:00:05]} Qb6 {[%emt 0:01:11]} 9. Nc3 {[%emt 0:11:41]} Nxc3 {[%emt 0:00:40]} 10. dxc3 {[%emt 0:00:24]} O-O {[%emt 0:03:35]} 11. Nd2 {[%emt 0:01:19]} Rd8 {[%emt 0:05:07]} 12. Nc4 {[%emt 0:00:18]} Rxd1+ {[%emt 0:01:13]} 13. Qxd1 {[%emt 0:00:05]} Qd8 {[%emt 0:03:20]} 14. Qxd8+ {[%emt 0:02:18]} Nxd8 {[%emt 0:00:32]} 15. Bf4 {[%emt 0:00:43]} f6 {[%emt 0:19:13]} 16. Bc7 {[%emt 0:04:29]} Nf7 {[%emt 0:14:59]} 17. Rd1 {[%emt 0:00:41]} e5 {[%emt 0:03:45]} 18. Ne3 {[%emt 0:03:22]} Kf8 {[%emt 0:06:11]} 19. f4 {[%emt 0:04:13]} Ke8 {[%emt 0:02:38]} 20. fxe5 {[%emt 0:07:26]} fxe5 {[%emt 0:05:01]} 21. Bd5 {[%emt 0:04:06]} Bf6 {[%emt 0:08:24]} 22. a4 {[%emt 0:02:41]} a5 {[%emt 0:02:28]} 23. Nc4 {[%emt 0:01:30]} Bg4 {[%emt 0:04:21]} 24. Re1 {[%emt 0:00:10]} Ra6 {[%emt 0:02:30]} 25. Bxb7 {[%emt 0:01:10]} Re6 {[%emt 0:02:56]} 26. Bd5 {[%emt 0:05:59]} Re7 {[%emt 0:00:21]} 27. Bb6 {[%emt 0:00:27]} Ng5 {[%emt 0:01:31]} 28. Bxc5 {[%emt 0:00:29]} Be6 {[%emt 0:03:32]} 29. Bc6+ {[%emt 0:02:15]} Bd7 {[%emt 0:00:09]} 30. Bxe7 {[%emt 0:03:58]} Bxc6 {[%emt 0:00:23]} 31. Nxe5 {[%emt 0:00:23]} Be4 {[%emt 0:04:06]} 32. h4 {[%emt 0:00:53]} 1-0

[Event "Marienbad Open IM2 2020"]
[Site "Marianske Lazne"]
[Date "2020.01.24"]
[Round "8.14"]
[White "Strebkovs, Andrejs"]
[Black "Nguyen, Alex Dac-Vuong"]
[Result "0-1"]
[ECO "A57"]
[WhiteElo "2278"]
[BlackElo "2401"]
[Annotator "NA"]
[PlyCount "60"]
[EventDate "2020.01.18"]
[EventType "tourn"]
[EventCountry "CZE"]
[SourceTitle "playchess.com"]
[Source "ChessBase"]
[SourceQuality "1"]
[TimeControl "40/5400+30:1800+30"]

1. d4 {[%emt 0:03:59]} Nf6 {[%emt 0:00:00]} 2. c4 {[%emt 0:00:08]} c5 {[%emt 0:00:00]} 3. d5 {[%emt 0:00:12]} b5 {[%emt 0:00:00]} 4. cxb5 {[%emt 0:00:10]} a6 {[%emt 0:00:00]} 5. f3 {[%emt 0:00:51]} axb5 {[%emt 0:00:14]} 6. e4 {[%emt 0:00:08]} Qa5+ {[%emt 0:00:09]} 7. Bd2 {[%emt 0:00:56]} b4 {[%emt 0:00:44]} 8. Na3 {[%emt 0:00:15]} d6 {[%emt 0:00:08]} 9. Nc4 {[%emt 0:00:21]} Qd8 {[%emt 0:00:06]} 10. a3 {[%emt 0:01:14]} e6 {[%emt 0:00:08]} 11. dxe6 {[%emt 0:04:08]} Bxe6 {[%emt 0:00:11]} 12. axb4 {[%emt 0:01:14]} Rxa1 {[%emt 0:00:10]} 13. Qxa1 {[%emt 0:00:08]} d5 {[%emt 0:00:04]} 14. exd5 {[%emt 0:02:17]} Nxd5 {[%emt 0:00:11]} 15. b5 {[%emt 0:02:32]} Be7 {[%emt 0:05:15]} 16. Qa5 {[%emt 0:13:13]} Qc8 {[%emt 0:03:32]} 17. b3 {[%emt 0:03:55]} O-O {[%emt 0:03:28]} 18. Bd3 {[%emt 0:08:55]} Nb4 {[%emt 0:03:09]} 19. Be4 {[%emt 0:04:10]} Rd8 {[%emt 0:10:28]} 20. Nb6 {[%emt 0:06:22]} Qc7 {[%emt 0:00:17]} 21. Ne2 {[%emt 0:01:42]} Qd6 {[%emt 0:02:21]} 22. Bxb4 {[%emt 0:03:33]} Qd1+ {[%emt 0:01:09]} 23. Kf2 {[%emt 0:00:03]} Qxh1 {[%emt 0:00:09]} 24. Bd2 {[%emt 0:04:48]} Bh4+ {[%emt 0:01:46]} 25. g3 {[%emt 0:03:52]} Qxh2+ {[%emt 0:00:06]} 26. Ke3 {[%emt 0:00:12]} Bg5+ {[%emt 0:02:07]} 27. f4 {[%emt 0:00:52]} Bg4 {[%emt 0:00:14]} 28. fxg5 {[%emt 0:06:08]} Qxe2+ {[%emt 0:00:14]} 29. Kf4 {[%emt 0:00:02]} Rd4 {[%emt 0:02:19]} 30. Be3 {[%emt 0:05:42]} Qf3+ {[%emt 0:00:19]} 0-1